{"text_format":"3","workbook":"xlsx","n_sheets":1,"sheets":["לחץ דם ורמת גלוקוז"],"not_rendered":{"defined_names":9},"read":"whole","date_system":"1900"}

{"sheet":"לחץ דם ורמת גלוקוז","index":0,"n_rows":13,"n_cols":11,"rows_kept":13,"merged":[[0,1,4,3],[0,4,0,9],[1,4,1,6],[1,7,1,9],[3,7,4,7],[3,8,4,8],[3,9,4,9]]}
[null,"מעקב אחר לחץ דם\nורמת גלוקוז",null,null,"התאם אישית את ערכי הסרגל בתאים E2 עד J5, מתחת."]
[{"$nulls":4},"לחץ דם",null,null,"סרגל גלוקוז"]
[{"$nulls":4},120,"סיסטולי",140,70,100,150]
[{"$nulls":4},80,"דיאסטולי",90,"נמוכה","רגילה","גבוהה"]
[{"$nulls":4},"ערך יעד",null,"התקשר לרופא"]
[null,"תאריך","שעה","אירוע","סיסטולי","דיאסטולי","דופק","גלוקוז","רמה","מצב","הערות"]
[null,{"$f":"TODAY()","v":"2018-07-04"},"06:00:00","יקיצה",129,79,72,55,{"$f":"BloodPressureAndGlucose[[#This Row],[גלוקוז]]","v":55},{"$f":"IFERROR(IF(BloodPressureAndGlucose[[#This Row],[רמה]]=0,\"\",IF(BloodPressureAndGlucose[[#This Row],[רמה]]<=GLow,\"נמוכה\",IF(AND(BloodPressureAndGlucose[[#This Row],[רמה]]>GLow,BloodPressureAndGlucose[[#This Row],[רמה]]<GHigh),\"רגילה\",\"גבוהה\"))), \"\")","v":"נמוכה"}]
[null,{"$f":"TODAY()","v":"2018-07-04"},"07:00:00","לפני ארוחה",120,80,74,70,{"$f":"BloodPressureAndGlucose[[#This Row],[גלוקוז]]","v":70},{"$f":"IFERROR(IF(BloodPressureAndGlucose[[#This Row],[רמה]]=0,\"\",IF(BloodPressureAndGlucose[[#This Row],[רמה]]<=GLow,\"נמוכה\",IF(AND(BloodPressureAndGlucose[[#This Row],[רמה]]>GLow,BloodPressureAndGlucose[[#This Row],[רמה]]<GHigh),\"רגילה\",\"גבוהה\"))), \"\")","v":"נמוכה"}]
[null,"2018-07-04","09:00:00","אחרי ארוחה",133,80,75,75,{"$f":"BloodPressureAndGlucose[[#This Row],[גלוקוז]]","v":75},{"$f":"IFERROR(IF(BloodPressureAndGlucose[[#This Row],[רמה]]=0,\"\",IF(BloodPressureAndGlucose[[#This Row],[רמה]]<=GLow,\"נמוכה\",IF(AND(BloodPressureAndGlucose[[#This Row],[רמה]]>GLow,BloodPressureAndGlucose[[#This Row],[רמה]]<GHigh),\"רגילה\",\"גבוהה\"))), \"\")","v":"רגילה"}]
[null,"2018-07-04","10:00:00","לחץ דם בלבד",143,91,75,190,{"$f":"BloodPressureAndGlucose[[#This Row],[גלוקוז]]","v":190},{"$f":"IFERROR(IF(BloodPressureAndGlucose[[#This Row],[רמה]]=0,\"\",IF(BloodPressureAndGlucose[[#This Row],[רמה]]<=GLow,\"נמוכה\",IF(AND(BloodPressureAndGlucose[[#This Row],[רמה]]>GLow,BloodPressureAndGlucose[[#This Row],[רמה]]<GHigh),\"רגילה\",\"גבוהה\"))), \"\")","v":"גבוהה"}]
[null,"2018-07-04","12:00:00","לפני ארוחה",141,84,70,140,{"$f":"BloodPressureAndGlucose[[#This Row],[גלוקוז]]","v":140},{"$f":"IFERROR(IF(BloodPressureAndGlucose[[#This Row],[רמה]]=0,\"\",IF(BloodPressureAndGlucose[[#This Row],[רמה]]<=GLow,\"נמוכה\",IF(AND(BloodPressureAndGlucose[[#This Row],[רמה]]>GLow,BloodPressureAndGlucose[[#This Row],[רמה]]<GHigh),\"רגילה\",\"גבוהה\"))), \"\")","v":"רגילה"}]
[null,{"$f":"TODAY()","v":"2018-07-04"},"15:00:00","אחרי ארוחה",132,80,68,90,{"$f":"BloodPressureAndGlucose[[#This Row],[גלוקוז]]","v":90},{"$f":"IFERROR(IF(BloodPressureAndGlucose[[#This Row],[רמה]]=0,\"\",IF(BloodPressureAndGlucose[[#This Row],[רמה]]<=GLow,\"נמוכה\",IF(AND(BloodPressureAndGlucose[[#This Row],[רמה]]>GLow,BloodPressureAndGlucose[[#This Row],[רמה]]<GHigh),\"רגילה\",\"גבוהה\"))), \"\")","v":"רגילה"},"לקחתי תרופה ללחץ דם גבוה עם הארוחה"]
[null,"ממוצעים",null,null,{"$f":"SUBTOTAL(101,BloodPressureAndGlucose[סיסטולי])","v":133},{"$f":"SUBTOTAL(101,BloodPressureAndGlucose[דיאסטולי])","v":{"v":82.33333333333333,"d":"82"}},{"$f":"SUBTOTAL(101,BloodPressureAndGlucose[דופק])","v":{"v":72.33333333333333,"d":"72"}},{"$f":"SUBTOTAL(101,BloodPressureAndGlucose[גלוקוז])","v":{"v":103.33333333333333,"d":"103"}}]